[Event "January 2 Early 2024"]
[Site "https://www.chess.com"]
[Date "2024.01.02"]
[Round "10"]
[White "Skibbe, Willi"]
[Black "Bold, Andre"]
[Result "0-1"]
[Board "104"]
[TimeControl "180+1"]
[WhiteFideId "4682190"]
[BlackFideId "16208471"]
[WhiteElo "2396"]
[BlackElo "2507"]
[WhiteTeam "GER"]
[BlackTeam "GER"]
[WhiteClock "0:00:00"]
[BlackClock "0:00:51"]

1. d4 {[%clk 0:02:59]}  d5 {[%clk 0:02:58]} 2. Nf3 {[%clk 0:02:58]}  c6 {[%clk 0:02:58]} 3. Nbd2 {[%clk 0:02:56]}  Nf6 {[%clk 0:02:59]} 4. c4 {[%clk 0:02:55]}  Bf5 {[%clk 0:02:59]} 5. Nh4 {[%clk 0:02:54]}  Bd7 {[%clk 0:02:58]} 6. e3 {[%clk 0:02:51]}  g6 {[%clk 0:02:57]} 7. Bd3 {[%clk 0:02:47]}  Bg7 {[%clk 0:02:57]} 8. b3 {[%clk 0:02:46]}  O-O {[%clk 0:02:56]} 9. Bb2 {[%clk 0:02:45]}  Bg4 {[%clk 0:02:52]} 10. Qc2 {[%clk 0:02:38]}  a5 {[%clk 0:02:48]} 11. h3 {[%clk 0:02:37]}  Bc8 {[%clk 0:02:47]} 12. a3 {[%clk 0:02:32]}  b6 {[%clk 0:02:43]} 13. O-O {[%clk 0:02:30]}  Ba6 {[%clk 0:02:41]} 14. f4 {[%clk 0:02:21]}  Nbd7 {[%clk 0:02:33]} 15. Nhf3 {[%clk 0:02:20]}  Ne8 {[%clk 0:02:32]} 16. Ne5 {[%clk 0:02:19]}  Nxe5 {[%clk 0:02:31]} 17. fxe5 {[%clk 0:02:19]}  c5 {[%clk 0:02:23]} 18. Rad1 {[%clk 0:01:33]}  Nc7 {[%clk 0:02:11]} 19. Nf3 {[%clk 0:01:03]}  Ne6 {[%clk 0:02:01]} 20. cxd5 {[%clk 0:00:53]}  Bxd3 {[%clk 0:01:59]} 21. Qxd3 {[%clk 0:00:41]}  Qxd5 {[%clk 0:01:59]} 22. e4 {[%clk 0:00:41]}  Qb7 {[%clk 0:01:57]} 23. d5 {[%clk 0:00:41]}  Nc7 {[%clk 0:01:49]} 24. Qc2 {[%clk 0:00:33]}  Rad8 {[%clk 0:01:42]} 25. a4 {[%clk 0:00:21]}  Na6 {[%clk 0:01:42]} 26. Qc4 {[%clk 0:00:20]}  Nb4 {[%clk 0:01:40]} 27. Ng5 {[%clk 0:00:19]}  Qa6 {[%clk 0:01:30]} 28. Bc3 {[%clk 0:00:15]}  Qxc4 {[%clk 0:01:28]} 29. bxc4 {[%clk 0:00:16]}  h6 {[%clk 0:01:25]} 30. Nf3 {[%clk 0:00:16]}  e6 {[%clk 0:01:22]} 31. d6 {[%clk 0:00:15]}  f6 {[%clk 0:01:14]} 32. Bd2 {[%clk 0:00:15]}  fxe5 {[%clk 0:01:11]} 33. Bc3 {[%clk 0:00:13]}  Nc6 {[%clk 0:01:08]} 34. Rd2 {[%clk 0:00:13]}  Nd4 {[%clk 0:01:08]} 35. Nxd4 {[%clk 0:00:05]}  exd4 {[%clk 0:01:08]} 36. Bb2 {[%clk 0:00:05]}  Rxf1+ {[%clk 0:01:07]} 37. Kxf1 {[%clk 0:00:06]}  e5 {[%clk 0:01:07]} 38. Rf2 {[%clk 0:00:06]}  Rxd6 {[%clk 0:01:06]} 39. Ke2 {[%clk 0:00:06]}  g5 {[%clk 0:00:56]} 40. g4 {[%clk 0:00:06]}  h5 {[%clk 0:00:54]} 41. Kd3 {[%clk 0:00:06]}  hxg4 {[%clk 0:00:54]} 42. hxg4 {[%clk 0:00:06]}  Rh6 {[%clk 0:00:54]} 43. Rf3 {[%clk 0:00:05]}  Rh1 {[%clk 0:00:52]} 44. Rf2 {[%clk 0:00:00]}  Rg1 {[%clk 0:00:51]} 0-1

[Event "January 2 Early 2024"]
[Site "https://www.chess.com"]
[Date "2024.01.02"]
[Round "10"]
[White "Balla, Tamas-Kristof"]
[Black "Legenia, Artem"]
[Result "1-0"]
[Board "107"]
[TimeControl "180+1"]
[WhiteFideId "1208497"]
[BlackFideId "14136945"]
[WhiteElo "2496"]
[BlackElo "2381"]
[WhiteTeam "ROU"]
[BlackTeam "UKR"]
[WhiteClock "0:00:38"]
[BlackClock "0:00:37"]

1. e4 {[%clk 0:03:00]}  Nc6 {[%clk 0:02:53]} 2. d4 {[%clk 0:02:51]}  d5 {[%clk 0:02:52]} 3. exd5 {[%clk 0:02:48]}  Qxd5 {[%clk 0:02:51]} 4. Nf3 {[%clk 0:02:49]}  Bg4 {[%clk 0:02:51]} 5. Nc3 {[%clk 0:02:47]}  Qa5 {[%clk 0:02:51]} 6. Bb5 {[%clk 0:02:47]}  O-O-O {[%clk 0:02:49]} 7. Bxc6 {[%clk 0:02:47]}  bxc6 {[%clk 0:02:49]} 8. Be3 {[%clk 0:02:46]}  Nf6 {[%clk 0:02:49]} 9. Qe2 {[%clk 0:02:41]}  e6 {[%clk 0:02:45]} 10. h3 {[%clk 0:02:41]}  Bxf3 {[%clk 0:02:39]} 11. Qxf3 {[%clk 0:02:39]}  Kb7 {[%clk 0:02:37]} 12. O-O {[%clk 0:02:38]}  Bb4 {[%clk 0:02:37]} 13. Ne4 {[%clk 0:02:21]}  Nxe4 {[%clk 0:02:36]} 14. Qxe4 {[%clk 0:02:22]}  Qf5 {[%clk 0:02:28]} 15. Qh4 {[%clk 0:02:17]}  h6 {[%clk 0:02:22]} 16. c4 {[%clk 0:02:05]}  g5 {[%clk 0:02:12]} 17. Qh5 {[%clk 0:02:05]}  Bd6 {[%clk 0:02:04]} 18. b4 {[%clk 0:01:57]}  Qg6 {[%clk 0:01:42]} 19. Qf3 {[%clk 0:01:50]}  Qf5 {[%clk 0:01:40]} 20. Qe2 {[%clk 0:01:47]}  Kc8 {[%clk 0:01:20]} 21. c5 {[%clk 0:01:46]}  Be7 {[%clk 0:01:20]} 22. b5 {[%clk 0:01:46]}  cxb5 {[%clk 0:01:16]} 23. Qxb5 {[%clk 0:01:46]}  Qd5 {[%clk 0:01:14]} 24. Rab1 {[%clk 0:01:40]}  Rhg8 {[%clk 0:01:13]} 25. Qa4 {[%clk 0:01:15]}  g4 {[%clk 0:01:11]} 26. c6 {[%clk 0:01:12]}  a5 {[%clk 0:01:01]} 27. Rb5 {[%clk 0:00:43]}  Qxc6 {[%clk 0:00:59]} 28. Rc1 {[%clk 0:00:43]}  Qe4 {[%clk 0:00:47]} 29. Rxa5 {[%clk 0:00:38]}  gxh3 {[%clk 0:00:37]} 30. Ra8+ {[%clk 0:00:37]}  Qxa8 {[%clk 0:00:37]} 31. Qxa8+ {[%clk 0:00:38]}  Kd7 {[%clk 0:00:38]} 32. Qc6+ {[%clk 0:00:37]}  Kc8 {[%clk 0:00:37]} 33. Qxc7# {[%clk 0:00:38]} 1-0

[Event "January 2 Early 2024"]
[Site "https://www.chess.com"]
[Date "2024.01.02"]
[Round "10"]
[White "Marchesich, Giovanni"]
[Black "Santos Flores, Alberto"]
[Result "0-1"]
[Board "108"]
[TimeControl "180+1"]
[WhiteFideId "2824790"]
[BlackFideId "3601234"]
[WhiteElo "2371"]
[BlackElo "2494"]
[WhiteTeam "ITA"]
[BlackTeam "ECU"]
[WhiteClock "0:00:00"]
[BlackClock "0:00:58"]

1. e4 {[%clk 0:03:00]}  e6 {[%clk 0:02:59]} 2. d4 {[%clk 0:03:00]}  d5 {[%clk 0:02:59]} 3. exd5 {[%clk 0:03:01]}  exd5 {[%clk 0:02:59]} 4. Bd3 {[%clk 0:03:00]}  Nc6 {[%clk 0:02:59]} 5. c3 {[%clk 0:02:59]}  Bd6 {[%clk 0:02:58]} 6. Ne2 {[%clk 0:02:59]}  Qh4 {[%clk 0:02:58]} 7. g3 {[%clk 0:02:49]}  Qh3 {[%clk 0:02:58]} 8. Bf4 {[%clk 0:02:45]}  Qg2 {[%clk 0:02:50]} 9. Rg1 {[%clk 0:02:22]}  Qxh2 {[%clk 0:02:49]} 10. Bxd6 {[%clk 0:02:22]}  cxd6 {[%clk 0:02:50]} 11. Na3 {[%clk 0:02:19]}  Bg4 {[%clk 0:02:44]} 12. Qd2 {[%clk 0:01:29]}  Nf6 {[%clk 0:02:34]} 13. O-O-O {[%clk 0:01:29]}  O-O-O {[%clk 0:02:13]} 14. Rh1 {[%clk 0:01:24]}  Qg2 {[%clk 0:02:09]} 15. f3 {[%clk 0:01:07]}  Qxf3 {[%clk 0:01:55]} 16. Rdf1 {[%clk 0:01:04]}  Ne4 {[%clk 0:01:55]} 17. Rxf3 {[%clk 0:00:50]}  Nxd2 {[%clk 0:01:55]} 18. Rxf7 {[%clk 0:00:50]}  Ne4 {[%clk 0:01:56]} 19. Rxg7 {[%clk 0:00:35]}  Nf2 {[%clk 0:01:55]} 20. Rxg4 {[%clk 0:00:30]}  Nxh1 {[%clk 0:01:52]} 21. Nf4 {[%clk 0:00:19]}  Nf2 {[%clk 0:01:45]} 22. Bf5+ {[%clk 0:00:19]}  Kb8 {[%clk 0:01:45]} 23. Rg7 {[%clk 0:00:19]}  Rdg8 {[%clk 0:01:41]} 24. Rd7 {[%clk 0:00:13]}  Rxg3 {[%clk 0:01:32]} 25. Nxd5 {[%clk 0:00:13]}  h5 {[%clk 0:01:23]} 26. Nb5 {[%clk 0:00:13]}  Rd8 {[%clk 0:01:13]} 27. Rh7 {[%clk 0:00:11]}  Rg5 {[%clk 0:01:11]} 28. Ne3 {[%clk 0:00:09]}  Ng4 {[%clk 0:01:03]} 29. Nxg4 {[%clk 0:00:04]}  hxg4 {[%clk 0:01:04]} 30. Be4 {[%clk 0:00:05]}  g3 {[%clk 0:01:02]} 31. Bxc6 {[%clk 0:00:02]}  bxc6 {[%clk 0:00:58]} 32. Nxa7 {[%clk 0:00:00]}  Rc8 {[%clk 0:00:58]} 0-1

[Event "January 2 Early 2024"]
[Site "https://www.chess.com"]
[Date "2024.01.02"]
[Round "10"]
[White "Kornyukov, Alexey"]
[Black "Azali, Tannaz"]
[Result "0-1"]
[Board "111"]
[TimeControl "180+1"]
[WhiteFideId "4150457"]
[BlackFideId "12537721"]
[WhiteElo "2318"]
[BlackElo "2481"]
[WhiteTeam "RUS"]
[BlackTeam "IRI"]
[WhiteClock "0:00:06"]
[BlackClock "0:01:33"]

1. d4 {[%clk 0:02:59]}  Nf6 {[%clk 0:02:59]} 2. Nc3 {[%clk 0:02:56]}  d5 {[%clk 0:02:59]} 3. Bg5 {[%clk 0:02:55]}  c6 {[%clk 0:02:58]} 4. Nf3 {[%clk 0:02:55]}  h6 {[%clk 0:02:59]} 5. Bh4 {[%clk 0:02:51]}  Bf5 {[%clk 0:02:59]} 6. e3 {[%clk 0:02:48]}  e6 {[%clk 0:02:59]} 7. Bd3 {[%clk 0:02:46]}  Bxd3 {[%clk 0:02:59]} 8. cxd3 {[%clk 0:02:43]}  Nbd7 {[%clk 0:03:00]} 9. O-O {[%clk 0:02:43]}  Be7 {[%clk 0:03:00]} 10. e4 {[%clk 0:02:43]}  O-O {[%clk 0:03:00]} 11. e5 {[%clk 0:02:42]}  Nh7 {[%clk 0:02:58]} 12. Bxe7 {[%clk 0:02:40]}  Qxe7 {[%clk 0:02:59]} 13. Qb3 {[%clk 0:02:40]}  b6 {[%clk 0:02:59]} 14. Rac1 {[%clk 0:02:35]}  c5 {[%clk 0:02:59]} 15. Ne2 {[%clk 0:02:28]}  cxd4 {[%clk 0:02:57]} 16. Nexd4 {[%clk 0:02:26]}  Nc5 {[%clk 0:02:58]} 17. Qa3 {[%clk 0:02:14]}  Rfc8 {[%clk 0:02:52]} 18. b4 {[%clk 0:02:05]}  Nd7 {[%clk 0:02:50]} 19. Nc6 {[%clk 0:02:02]}  Qf8 {[%clk 0:02:50]} 20. Qb2 {[%clk 0:01:49]}  Qe8 {[%clk 0:02:38]} 21. b5 {[%clk 0:01:47]}  Nc5 {[%clk 0:02:37]} 22. Rfd1 {[%clk 0:01:33]}  a6 {[%clk 0:02:33]} 23. Ncd4 {[%clk 0:01:29]}  axb5 {[%clk 0:02:32]} 24. Nxb5 {[%clk 0:01:28]}  Qd7 {[%clk 0:02:23]} 25. Nd6 {[%clk 0:01:26]}  Rcb8 {[%clk 0:02:23]} 26. Nd4 {[%clk 0:01:13]}  Nf8 {[%clk 0:02:08]} 27. N4b5 {[%clk 0:01:10]}  Ng6 {[%clk 0:02:07]} 28. d4 {[%clk 0:01:07]}  Ne4 {[%clk 0:02:06]} 29. Rc7 {[%clk 0:01:03]}  Qd8 {[%clk 0:02:02]} 30. Nxf7 {[%clk 0:01:01]}  Qh4 {[%clk 0:01:59]} 31. g3 {[%clk 0:00:58]}  Qg4 {[%clk 0:01:57]} 32. Rdc1 {[%clk 0:00:49]}  Nf4 {[%clk 0:01:56]} 33. f3 {[%clk 0:00:31]}  Qxf3 {[%clk 0:01:43]} 34. gxf4 {[%clk 0:00:30]}  Qe3+ {[%clk 0:01:43]} 35. Kg2 {[%clk 0:00:28]}  Nd2 {[%clk 0:01:38]} 36. R1c3 {[%clk 0:00:25]}  Qe2+ {[%clk 0:01:37]} 37. Kh3 {[%clk 0:00:15]}  Qh5+ {[%clk 0:01:36]} 38. Kg2 {[%clk 0:00:15]}  Qg4+ {[%clk 0:01:35]} 39. Kf2 {[%clk 0:00:14]}  Ne4+ {[%clk 0:01:35]} 40. Ke3 {[%clk 0:00:14]}  Qh3+ {[%clk 0:01:33]} 41. Ke2 {[%clk 0:00:14]}  Qxh2+ {[%clk 0:01:33]} 42. Kd3 {[%clk 0:00:14]}  Qxb2 {[%clk 0:01:34]} 43. Rc2 {[%clk 0:00:10]}  Qxb5+ {[%clk 0:01:33]} 44. Ke3 {[%clk 0:00:06]}  Ra3+ {[%clk 0:01:33]} 0-1

[Event "January 2 Early 2024"]
[Site "https://www.chess.com"]
[Date "2024.01.02"]
[Round "10"]
[White "Pourkashiyan, Atousa"]
[Black "RaneshRatnesan"]
[Result "1-0"]
[Board "114"]
[TimeControl "180+1"]
[WhiteFideId "12502014"]
[WhiteElo "2460"]
[BlackElo "2268"]
[WhiteTeam "USA"]
[WhiteClock "0:00:21"]
[BlackClock "0:00:21"]

1. Nf3 {[%clk 0:03:00]}  d5 {[%clk 0:02:49]} 2. g3 {[%clk 0:03:00]}  Nf6 {[%clk 0:02:48]} 3. Bg2 {[%clk 0:02:59]}  Bg4 {[%clk 0:02:49]} 4. O-O {[%clk 0:03:00]}  Nbd7 {[%clk 0:02:49]} 5. d3 {[%clk 0:03:00]}  e6 {[%clk 0:02:48]} 6. h3 {[%clk 0:03:01]}  Bh5 {[%clk 0:02:48]} 7. Nbd2 {[%clk 0:03:01]}  c6 {[%clk 0:02:48]} 8. Qe1 {[%clk 0:03:02]}  e5 {[%clk 0:02:43]} 9. e4 {[%clk 0:03:02]}  Bd6 {[%clk 0:02:38]} 10. exd5 {[%clk 0:02:59]}  cxd5 {[%clk 0:02:39]} 11. c4 {[%clk 0:02:59]}  O-O {[%clk 0:02:25]} 12. cxd5 {[%clk 0:02:53]}  Nxd5 {[%clk 0:02:26]} 13. Nc4 {[%clk 0:02:52]}  Bc7 {[%clk 0:02:11]} 14. Bg5 {[%clk 0:02:16]}  f6 {[%clk 0:02:07]} 15. Bd2 {[%clk 0:02:12]}  N7b6 {[%clk 0:01:57]} 16. Nh4 {[%clk 0:02:06]}  Qd7 {[%clk 0:01:52]} 17. g4 {[%clk 0:01:59]}  Bf7 {[%clk 0:01:48]} 18. Be4 {[%clk 0:01:50]}  Nf4 {[%clk 0:01:37]} 19. Bxf4 {[%clk 0:01:40]}  exf4 {[%clk 0:01:38]} 20. Nxb6 {[%clk 0:01:37]}  Bxb6 {[%clk 0:01:38]} 21. Qd2 {[%clk 0:01:28]}  g5 {[%clk 0:01:24]} 22. Nf5 {[%clk 0:01:25]}  Bg6 {[%clk 0:01:24]} 23. Rac1 {[%clk 0:01:18]}  Rac8 {[%clk 0:01:22]} 24. Qb4 {[%clk 0:01:14]}  Kh8 {[%clk 0:01:17]} 25. Kg2 {[%clk 0:01:13]}  Rfe8 {[%clk 0:01:00]} 26. Rxc8 {[%clk 0:01:08]}  Rxc8 {[%clk 0:01:01]} 27. Qb3 {[%clk 0:00:44]}  Bf7 {[%clk 0:00:56]} 28. Qd1 {[%clk 0:00:43]}  Bd5 {[%clk 0:00:55]} 29. Qf3 {[%clk 0:00:34]}  Rd8 {[%clk 0:00:55]} 30. Re1 {[%clk 0:00:33]}  Bxa2 {[%clk 0:00:44]} 31. Bxb7 {[%clk 0:00:31]}  Bc5 {[%clk 0:00:42]} 32. Bc6 {[%clk 0:00:28]}  Qc7 {[%clk 0:00:41]} 33. Be4 {[%clk 0:00:23]}  Bf7 {[%clk 0:00:40]} 34. Rc1 {[%clk 0:00:23]}  Qb6 {[%clk 0:00:39]} 35. Qe2 {[%clk 0:00:23]}  a5 {[%clk 0:00:34]} 36. Qc2 {[%clk 0:00:23]}  Rc8 {[%clk 0:00:21]} 37. d4 {[%clk 0:00:21]} 1-0

[Event "January 2 Early 2024"]
[Site "https://www.chess.com"]
[Date "2024.01.02"]
[Round "10"]
[White "Smirnov, Mark"]
[Black "Rios Escobar, Adan"]
[Result "1-0"]
[Board "119"]
[TimeControl "180+1"]
[WhiteFideId "13764594"]
[BlackFideId "3403645"]
[WhiteElo "2528"]
[BlackElo "2377"]
[WhiteTeam "KAZ"]
[BlackTeam "CHI"]
[WhiteClock "0:00:10"]
[BlackClock "0:00:01"]

1. b3 {[%clk 0:03:00]}  c5 {[%clk 0:02:54]} 2. Bb2 {[%clk 0:02:59]}  Nc6 {[%clk 0:02:54]} 3. Nf3 {[%clk 0:02:57]}  d6 {[%clk 0:02:54]} 4. e3 {[%clk 0:02:55]}  e5 {[%clk 0:02:53]} 5. d4 {[%clk 0:02:46]}  cxd4 {[%clk 0:02:54]} 6. exd4 {[%clk 0:02:47]}  e4 {[%clk 0:02:54]} 7. Nfd2 {[%clk 0:02:47]}  d5 {[%clk 0:02:55]} 8. c4 {[%clk 0:02:46]}  Nf6 {[%clk 0:02:42]} 9. cxd5 {[%clk 0:02:43]}  Qxd5 {[%clk 0:02:43]} 10. Nc3 {[%clk 0:02:14]}  Qf5 {[%clk 0:02:36]} 11. Bb5 {[%clk 0:02:03]}  Bb4 {[%clk 0:02:29]} 12. O-O {[%clk 0:01:50]}  O-O {[%clk 0:02:23]} 13. Bxc6 {[%clk 0:01:49]}  bxc6 {[%clk 0:02:24]} 14. Qe2 {[%clk 0:01:45]}  Re8 {[%clk 0:02:23]} 15. Nc4 {[%clk 0:01:43]}  a5 {[%clk 0:02:20]} 16. a3 {[%clk 0:01:40]}  Bxc3 {[%clk 0:02:18]} 17. Bxc3 {[%clk 0:01:41]}  Nd5 {[%clk 0:02:18]} 18. Bd2 {[%clk 0:01:35]}  Ba6 {[%clk 0:02:17]} 19. Rfe1 {[%clk 0:01:26]}  Rad8 {[%clk 0:02:11]} 20. Bxa5 {[%clk 0:01:07]}  e3 {[%clk 0:02:03]} 21. Bxd8 {[%clk 0:01:01]}  Nf4 {[%clk 0:01:20]} 22. Qf3 {[%clk 0:00:54]}  Nh3+ {[%clk 0:01:18]} 23. Kh1 {[%clk 0:00:30]}  Nxf2+ {[%clk 0:01:14]} 24. Kg1 {[%clk 0:00:29]}  Qxf3 {[%clk 0:00:53]} 25. gxf3 {[%clk 0:00:30]}  Nh3+ {[%clk 0:00:44]} 26. Kg2 {[%clk 0:00:24]}  Nf4+ {[%clk 0:00:42]} 27. Kg3 {[%clk 0:00:25]}  Nh5+ {[%clk 0:00:26]} 28. Kh4 {[%clk 0:00:17]}  Rxd8 {[%clk 0:00:26]} 29. Kxh5 {[%clk 0:00:16]}  Rxd4 {[%clk 0:00:21]} 30. Nxe3 {[%clk 0:00:10]}  g6+ {[%clk 0:00:13]} 31. Kg5 {[%clk 0:00:10]}  Kg7 {[%clk 0:00:14]} 32. Nf5+ {[%clk 0:00:07]}  gxf5 {[%clk 0:00:13]} 33. Kxf5 {[%clk 0:00:04]}  Bc8+ {[%clk 0:00:08]} 34. Ke5 {[%clk 0:00:05]}  Rh4 {[%clk 0:00:07]} 35. f4 {[%clk 0:00:05]}  Rxh2 {[%clk 0:00:06]} 36. Rg1+ {[%clk 0:00:05]}  Kf8 {[%clk 0:00:07]} 37. Kd6 {[%clk 0:00:04]}  Rh6+ {[%clk 0:00:06]} 38. Kc7 {[%clk 0:00:04]}  Bf5 {[%clk 0:00:06]} 39. a4 {[%clk 0:00:04]}  Bc2 {[%clk 0:00:05]} 40. a5 {[%clk 0:00:04]}  Bxb3 {[%clk 0:00:04]} 41. a6 {[%clk 0:00:05]}  c5 {[%clk 0:00:05]} 42. a7 {[%clk 0:00:06]}  Bd5 {[%clk 0:00:05]} 43. Rgd1 {[%clk 0:00:05]}  Bf3 {[%clk 0:00:05]} 44. a8=Q+ {[%clk 0:00:04]}  Bxa8 {[%clk 0:00:05]} 45. Rxa8+ {[%clk 0:00:04]}  Ke7 {[%clk 0:00:04]} 46. Re1+ {[%clk 0:00:05]}  Kf6 {[%clk 0:00:04]} 47. Ra6+ {[%clk 0:00:05]}  Kg7 {[%clk 0:00:04]} 48. Rxh6 {[%clk 0:00:04]}  Kxh6 {[%clk 0:00:05]} 49. Kd6 {[%clk 0:00:04]}  c4 {[%clk 0:00:05]} 50. Kd5 {[%clk 0:00:04]}  c3 {[%clk 0:00:05]} 51. Kd4 {[%clk 0:00:05]}  c2 {[%clk 0:00:06]} 52. Kd3 {[%clk 0:00:05]}  Kg6 {[%clk 0:00:06]} 53. Kxc2 {[%clk 0:00:06]}  Kf5 {[%clk 0:00:07]} 54. Kd3 {[%clk 0:00:06]}  Kxf4 {[%clk 0:00:07]} 55. Ke2 {[%clk 0:00:07]}  f5 {[%clk 0:00:07]} 56. Kf2 {[%clk 0:00:07]}  h5 {[%clk 0:00:08]} 57. Ra1 {[%clk 0:00:07]}  Kg4 {[%clk 0:00:08]} 58. Ra4+ {[%clk 0:00:08]}  f4 {[%clk 0:00:08]} 59. Ra8 {[%clk 0:00:06]}  h4 {[%clk 0:00:08]} 60. Rg8+ {[%clk 0:00:07]}  Kh3 {[%clk 0:00:07]} 61. Kf3 {[%clk 0:00:08]}  Kh2 {[%clk 0:00:07]} 62. Rh8 {[%clk 0:00:08]}  h3 {[%clk 0:00:07]} 63. Rh7 {[%clk 0:00:07]}  Kh1 {[%clk 0:00:03]} 64. Rxh3+ {[%clk 0:00:08]}  Kg1 {[%clk 0:00:03]} 65. Rh4 {[%clk 0:00:09]}  Kf1 {[%clk 0:00:01]} 66. Rh1# {[%clk 0:00:10]} 1-0

[Event "January 2 Early 2024"]
[Site "https://www.chess.com"]
[Date "2024.01.02"]
[Round "10"]
[White "Kleibel, Uwe"]
[Black "Ladan, Nicholas"]
[Result "0-1"]
[Board "121"]
[TimeControl "180+1"]
[WhiteFideId "1270982"]
[BlackFideId "30918855"]
[WhiteElo "2355"]
[BlackElo "2485"]
[WhiteTeam "GER"]
[BlackTeam "USA"]
[WhiteClock "0:01:25"]
[BlackClock "0:01:42"]

1. e4 {[%clk 0:03:00]}  e5 {[%clk 0:02:59]} 2. Nf3 {[%clk 0:03:00]}  Nc6 {[%clk 0:02:59]} 3. d4 {[%clk 0:03:01]}  exd4 {[%clk 0:02:59]} 4. Nxd4 {[%clk 0:03:02]}  Qf6 {[%clk 0:03:00]} 5. Nxc6 {[%clk 0:02:57]}  Bc5 {[%clk 0:02:58]} 6. Qe2 {[%clk 0:02:57]}  dxc6 {[%clk 0:02:57]} 7. Be3 {[%clk 0:02:57]}  Qxb2 {[%clk 0:02:52]} 8. Bxc5 {[%clk 0:02:52]}  Qxa1 {[%clk 0:02:52]} 9. Qd1 {[%clk 0:02:44]}  Qxa2 {[%clk 0:02:38]} 10. Nc3 {[%clk 0:02:42]}  Qa5 {[%clk 0:02:34]} 11. Qd4 {[%clk 0:02:38]}  Nf6 {[%clk 0:02:28]} 12. Bb4 {[%clk 0:02:11]}  Qa1+ {[%clk 0:02:28]} 13. Kd2 {[%clk 0:02:11]}  Be6 {[%clk 0:02:23]} 14. Qc5 {[%clk 0:01:57]}  O-O-O+ {[%clk 0:02:21]} 15. Bd3 {[%clk 0:01:54]}  Qxh1 {[%clk 0:02:04]} 16. Qxa7 {[%clk 0:01:54]}  Qxg2 {[%clk 0:01:45]} 17. Qa8+ {[%clk 0:01:33]}  Kd7 {[%clk 0:01:45]} 18. Qxb7 {[%clk 0:01:34]}  Qxf2+ {[%clk 0:01:44]} 19. Kc1 {[%clk 0:01:32]}  Qe3+ {[%clk 0:01:42]} 20. Kb2 {[%clk 0:01:25]}  Qb6 {[%clk 0:01:42]} 0-1

[Event "January 2 Early 2024"]
[Site "https://www.chess.com"]
[Date "2024.01.02"]
[Round "10"]
[White "Munoz Sanchez, Miguel"]
[Black "Spitzl, Vinzent"]
[Result "0-1"]
[Board "122"]
[TimeControl "180+1"]
[WhiteFideId "3600734"]
[BlackFideId "12901253"]
[WhiteElo "2310"]
[BlackElo "2478"]
[WhiteTeam "ECU"]
[BlackTeam "GER"]
[WhiteClock "0:00:19"]
[BlackClock "0:00:08"]

1. e4 {[%clk 0:03:00]}  c5 {[%clk 0:02:59]} 2. Nf3 {[%clk 0:03:00]}  d6 {[%clk 0:02:59]} 3. c3 {[%clk 0:03:00]}  Nf6 {[%clk 0:02:59]} 4. h3 {[%clk 0:02:59]}  Nc6 {[%clk 0:02:58]} 5. Bd3 {[%clk 0:02:58]}  g6 {[%clk 0:02:57]} 6. O-O {[%clk 0:02:58]}  Bg7 {[%clk 0:02:58]} 7. Bc2 {[%clk 0:02:58]}  O-O {[%clk 0:02:58]} 8. d4 {[%clk 0:02:58]}  cxd4 {[%clk 0:02:59]} 9. cxd4 {[%clk 0:02:58]}  Qb6 {[%clk 0:02:48]} 10. Nc3 {[%clk 0:02:56]}  e6 {[%clk 0:02:36]} 11. d5 {[%clk 0:02:55]}  Ne5 {[%clk 0:02:32]} 12. Nxe5 {[%clk 0:02:54]}  dxe5 {[%clk 0:02:32]} 13. Be3 {[%clk 0:02:40]}  Qa5 {[%clk 0:02:02]} 14. d6 {[%clk 0:02:31]}  Rd8 {[%clk 0:01:58]} 15. a3 {[%clk 0:02:27]}  Bf8 {[%clk 0:01:44]} 16. Bg5 {[%clk 0:02:24]}  Rxd6 {[%clk 0:01:43]} 17. Qe2 {[%clk 0:02:16]}  Ne8 {[%clk 0:01:25]} 18. Rfd1 {[%clk 0:02:09]}  Bd7 {[%clk 0:01:17]} 19. b4 {[%clk 0:02:08]}  Qc7 {[%clk 0:01:11]} 20. Rxd6 {[%clk 0:01:25]}  Nxd6 {[%clk 0:01:11]} 21. Bd2 {[%clk 0:01:21]}  Rc8 {[%clk 0:01:04]} 22. Bb3 {[%clk 0:01:16]}  Nc4 {[%clk 0:01:02]} 23. Be1 {[%clk 0:01:16]}  a6 {[%clk 0:00:56]} 24. Kh1 {[%clk 0:01:05]}  Nxa3 {[%clk 0:00:44]} 25. Rxa3 {[%clk 0:00:53]}  Bxb4 {[%clk 0:00:44]} 26. Ra1 {[%clk 0:00:54]}  Bxc3 {[%clk 0:00:44]} 27. Rc1 {[%clk 0:00:54]}  Qa5 {[%clk 0:00:42]} 28. Rxc3 {[%clk 0:00:44]}  Rxc3 {[%clk 0:00:40]} 29. Qd2 {[%clk 0:00:44]}  Bc6 {[%clk 0:00:22]} 30. Qxc3 {[%clk 0:00:38]}  Qxc3 {[%clk 0:00:21]} 31. Bxc3 {[%clk 0:00:39]}  Bxe4 {[%clk 0:00:21]} 32. Bxe5 {[%clk 0:00:39]}  Kf8 {[%clk 0:00:22]} 33. f3 {[%clk 0:00:37]}  Bc6 {[%clk 0:00:22]} 34. Kg1 {[%clk 0:00:33]}  Ke7 {[%clk 0:00:22]} 35. Bb2 {[%clk 0:00:33]}  f6 {[%clk 0:00:20]} 36. Kf2 {[%clk 0:00:32]}  b5 {[%clk 0:00:13]} 37. Ba3+ {[%clk 0:00:30]}  Kd7 {[%clk 0:00:13]} 38. Bb4 {[%clk 0:00:31]}  Bb7 {[%clk 0:00:03]} 39. Ke3 {[%clk 0:00:31]}  Bc6 {[%clk 0:00:04]} 40. Kd4 {[%clk 0:00:31]}  e5+ {[%clk 0:00:02]} 41. Kc5 {[%clk 0:00:30]}  e4 {[%clk 0:00:02]} 42. Bd1 {[%clk 0:00:26]}  exf3 {[%clk 0:00:02]} 43. Bxf3 {[%clk 0:00:26]}  Bxf3 {[%clk 0:00:02]} 44. gxf3 {[%clk 0:00:27]}  Ke6 {[%clk 0:00:03]} 45. Kd4 {[%clk 0:00:24]}  Kf5 {[%clk 0:00:03]} 46. Ke3 {[%clk 0:00:25]}  Ke5 {[%clk 0:00:02]} 47. Bc3+ {[%clk 0:00:25]}  Ke6 {[%clk 0:00:03]} 48. Ke4 {[%clk 0:00:24]}  f5+ {[%clk 0:00:03]} 49. Kf4 {[%clk 0:00:24]}  Kd5 {[%clk 0:00:03]} 50. Kg5 {[%clk 0:00:20]}  Kc4 {[%clk 0:00:04]} 51. Bf6 {[%clk 0:00:19]}  b4 {[%clk 0:00:03]} 52. Kh6 {[%clk 0:00:20]}  a5 {[%clk 0:00:04]} 53. Kxh7 {[%clk 0:00:20]}  a4 {[%clk 0:00:03]} 54. Kxg6 {[%clk 0:00:21]}  a3 {[%clk 0:00:03]} 55. h4 {[%clk 0:00:21]}  b3 {[%clk 0:00:03]} 56. h5 {[%clk 0:00:20]}  b2 {[%clk 0:00:04]} 57. Bxb2 {[%clk 0:00:18]}  axb2 {[%clk 0:00:04]} 58. h6 {[%clk 0:00:19]}  b1=Q {[%clk 0:00:04]} 59. h7 {[%clk 0:00:20]}  f4+ {[%clk 0:00:05]} 60. Kg7 {[%clk 0:00:19]}  Qb2+ {[%clk 0:00:05]} 61. Kg8 {[%clk 0:00:19]}  Qb8+ {[%clk 0:00:05]} 62. Kg7 {[%clk 0:00:19]}  Qc7+ {[%clk 0:00:05]} 63. Kg8 {[%clk 0:00:20]}  Qxh7+ {[%clk 0:00:05]} 64. Kxh7 {[%clk 0:00:20]}  Kd4 {[%clk 0:00:06]} 65. Kg6 {[%clk 0:00:20]}  Ke3 {[%clk 0:00:07]} 66. Kg5 {[%clk 0:00:20]}  Kxf3 {[%clk 0:00:07]} 67. Kh4 {[%clk 0:00:21]}  Kg2 {[%clk 0:00:08]} 68. Kg4 {[%clk 0:00:19]}  f3 {[%clk 0:00:08]} 0-1